bitfinex/quotes_ETHUSD_20250524
["timestamp","ask_amount","ask_price","bid_price","bid_amount"]
[1748088031042,11.701,2562.9,2562.4,8.55]
[1748088031043,3.90243902,2562.5,2562.4,10.95107]
[1748088031242,3.90243902,2562.5,2562.4,8.55]
[1748088031741,3.90243902,2562.5,2562.4,0.55]
[1748088031943,3.90289594,2562.2,2562.1,0.04564974]
[1748088034681,4.69039594,2562.2,2562.1,0.04564974]
[1748088037451,5.05257613,2562.2,2562.1,0.04564974]
[1748088037626,7.11821013,2562.2,2562.1,0.04564974]
[1748088039804,7.15281013,2562.2,2562.1,0.04564974]
[1748088041072,6.79062994,2562.2,2562.1,0.04564974]
[1748088044600,33.20662994,2562.2,2562.1,0.04564974]
[1748088044801,6.79062994,2562.2,2562.1,0.04564974]
[1748088045002,30.31889594,2562.2,2562.1,0.04564974]
[1748088045153,18.61589594,2562.2,2562.1,0.04564974]
[1748088045500,15.60589594,2562.2,2562.1,0.04564974]
[1748088045657,3.90289594,2562.2,2562.1,0.04564974]
[1748088046057,3.90289594,2562.2,2562.1,0.81934974]
[1748088047173,3.90289594,2562.2,2562.1,1.36934974]
[1748088047671,3.90289594,2562.2,2562.1,11.77758471]
[1748088048608,3.90289594,2562.2,2562.1,8.81934974]
[1748088048980,3.90289594,2562.2,2562.1,8.04564974]
[1748088051879,4.68009594,2562.2,2562.1,8.04564974]
[1748088052502,4.68009594,2562.2,2562.1,0.04564974]
[1748088053108,5.04156677,2562.2,2562.1,0.04564974]
[1748088053606,8.57759983,2562.2,2562.1,0.04564974]
[1748088055315,4.26436677,2562.2,2562.1,0.04564974]
[1748088055500,15.96736677,2562.2,2562.1,0.04564974]
[1748088055672,15.60589594,2562.2,2562.1,0.04564974]
[1748088057009,3.90289594,2562.2,2562.1,0.04564974]
[1748088057212,15.60589594,2562.2,2562.1,0.04564974]
[1748088057875,3.90289594,2562.2,2562.1,0.04564974]
[1748088058208,3.90289594,2562.2,2562.1,1.41304974]
[1748088058913,3.90289594,2562.2,2562.1,9.41304974]
[1748088059117,3.90289594,2562.2,2562.1,11.82985471]
[1748088059609,3.89899297,2562.2,2562.1,11.82985471]
[1748088060703,3.90281506,2562.3,2562.2,0.55]
[1748088060887,3.90274362,2562.3,2562.2,0.55]
[1748088062236,11.702,2562.6,2562.4,0.55]
[1748088062405,3.90243902,2562.5,2562.4,0.55]
[1748088062606,3.90259132,2562.4,2562.3,0.8174]
[1748088062819,3.90259132,2562.4,2562.3,2.49538547]
[1748088064327,3.90259132,2562.4,2562.3,1.94538547]
[1748088064533,3.90289594,2562.2,2562.1,11.27985471]
[1748088064732,3.90289594,2562.2,2562.1,11.82985471]
[1748088065828,3.90289594,2562.2,2562.1,11.27985471]
[1748088066127,3.90289594,2562.2,2562.1,8.86304974]
[1748088067110,3.90289594,2562.2,2562.1,0.04564974]
[1748088068332,15.60389594,2562.2,2562.1,0.04564974]
[1748088068754,16.40449594,2562.2,2562.1,0.04564974]
[1748088069264,16.7667375,2562.2,2562.1,0.04564974]
[1748088069462,20.30898795,2562.2,2562.1,0.04564974]
[1748088070364,19.94674639,2562.2,2562.1,0.04564974]
[1748088071238,19.97454639,2562.2,2562.1,0.04564974]
[1748088072949,8.27354639,2562.2,2562.1,0.04564974]
[1748088073149,31.18729594,2562.2,2562.1,0.04564974]
[1748088073351,4.73129594,2562.2,2562.1,0.04564974]
[1748088073658,31.80748161,2562.2,2562.1,0.04564974]
[1748088074463,5.35148161,2562.2,2562.1,0.04564974]
[1748088074661,16.22508161,2562.2,2562.1,0.04564974]
[1748088074825,16.22608161,2562.2,2562.1,0.04564974]
[1748088075220,15.60589594,2562.2,2562.1,0.04564974]
[1748088076274,17.6942308,2562.2,2562.1,0.04564974]
[1748088079145,18.4487308,2562.2,2562.1,0.04564974]
[1748088084052,33.2057308,2562.2,2562.1,0.04564974]
[1748088091500,37.3117308,2562.2,2562.1,0.04564974]
[1748088091674,33.2057308,2562.2,2562.1,0.04564974]
[1748088092707,33.82591647,2562.2,2562.1,0.04564974]
[1748088095809,48.64141647,2562.2,2562.1,0.04564974]
[1748088096170,41.60741647,2562.2,2562.1,0.04564974]
[1748088096687,40.9872308,2562.2,2562.1,0.04564974]
[1748088097104,14.5622308,2562.2,2562.1,0.04564974]
[1748088097305,40.9872308,2562.2,2562.1,0.04564974]
[1748088101820,18.6682308,2562.2,2562.1,0.04564974]
[1748088102120,45.0952308,2562.2,2562.1,0.04564974]
[1748088102411,18.6682308,2562.2,2562.1,0.04564974]
[1748088102614,45.0952308,2562.2,2562.1,0.04564974]
[1748088108701,29.2832308,2562.2,2562.1,0.04564974]
[1748088108894,40.9892308,2562.2,2562.1,0.04564974]
[1748088110844,29.2832308,2562.2,2562.1,0.04564974]
[1748088111138,40.9892308,2562.2,2562.1,0.04564974]
[1748088113744,11.71939594,2562.2,2562.1,0.04564974]
[1748088113946,23.42539594,2562.2,2562.1,0.04564974]
[1748088118351,15.60889594,2562.2,2562.1,0.04564974]
[1748088121053,15.60789594,2562.2,2562.1,0.04564974]
[1748088121253,3.90289594,2562.2,2562.1,0.04564974]
[1748088121453,15.60789594,2562.2,2562.1,0.04564974]
[1748088122052,18.35096223,2562.2,2562.1,0.04564974]
[1748088131993,24.80296223,2562.2,2562.1,0.04564974]
[1748088132164,26.0415487,2562.2,2562.1,0.04564974]
[1748088135917,33.8580487,2562.2,2562.1,0.04564974]
[1748088141103,32.61946223,2562.2,2562.1,0.04564974]
[1748088141807,20.91446223,2562.2,2562.1,0.04564974]
[1748088142045,13.67046223,2562.2,2562.1,0.04564974]
[1748088142357,23.42639594,2562.2,2562.1,0.04564974]
[1748088147335,11.71939594,2562.2,2562.1,0.04564974]
[1748088147542,23.42539594,2562.2,2562.1,0.04564974]
[1748088147704,15.60889594,2562.2,2562.1,0.04564974]
[1748088148342,15.60889594,2562.2,2562.1,0.80184974]
[1748088148559,3.90289594,2562.2,2562.1,0.80184974]
[1748088148715,16.22901049,2562.2,2562.1,0.80184974]
[1748088149742,4.52301049,2562.2,2562.1,0.80184974]
[1748088149922,15.60889594,2562.2,2562.1,0.80184974]
[1748088153735,15.60889594,2562.2,2562.1,0.04564974]
[1748088154307,17.62207368,2562.2,2562.1,0.04564974]
[1748088155528,18.37927368,2562.2,2562.1,0.04564974]
[1748088156955,30.30477368,2562.2,2562.1,0.04564974]
[1748088157471,33.19777368,2562.2,2562.1,0.04564974]
[1748088159860,34.43636015,2562.2,2562.1,0.04564974]
[1748088160747,33.19777368,2562.2,2562.1,0.04564974]
[1748088163342,41.19777368,2562.2,2562.1,0.04564974]
[1748088167309,29.49177368,2562.2,2562.1,0.04564974]
[1748088167499,47.26177368,2562.2,2562.1,0.04564974]
[1748088168087,47.81177368,2562.2,2562.1,0.04564974]
[1748088170919,18.59877368,2562.2,2562.1,0.04564974]
[1748088171214,44.91877368,2562.2,2562.1,0.04564974]
[1748088171418,18.59877368,2562.2,2562.1,0.04564974]
[1748088171581,44.91877368,2562.2,2562.1,0.04564974]
[1748088172120,47.26177368,2562.2,2562.1,0.04564974]
[1748088177921,20.94177368,2562.2,2562.1,0.04564974]
[1748088178220,55.26177368,2562.2,2562.1,0.04564974]
[1748088180292,27.08000035,2562.2,2562.1,0.04564974]
[1748088180497,47.27382261,2562.2,2562.1,0.04564974]
[1748088180826,27.56582261,2562.2,2562.1,0.04564974]
[1748088181010,39.27382261,2562.2,2562.1,0.04564974]
[1748088181212,27.56582261,2562.2,2562.1,0.84934974]
[1748088181413,39.27382261,2562.2,2562.1,0.84934974]
[1748088182217,43.2238157,2562.2,2562.1,0.04564974]
[1748088182723,41.98538903,2562.2,2562.1,0.04564974]
[1748088183729,15.66938903,2562.2,2562.1,0.04564974]
[1748088183893,38.03339594,2562.2,2562.1,0.04564974]
[1748088185222,11.71939594,2562.2,2562.1,0.04564974]
[1748088185455,38.03339594,2562.2,2562.1,0.04564974]
[1748088189934,11.71939594,2562.2,2562.1,0.04564974]
[1748088190143,38.03339594,2562.2,2562.1,0.04564974]
[1748088191967,41.98338903,2562.2,2562.1,0.04564974]
[1748088193675,11.71939594,2562.2,2562.1,0.04564974]
[1748088193968,38.03339594,2562.2,2562.1,0.83254974]
[1748088194936,38.03339594,2562.2,2562.1,0.04564974]
[1748088195974,26.32639594,2562.2,2562.1,0.04564974]
[1748088196174,38.03339594,2562.2,2562.1,0.04564974]
[1748088196733,26.32639594,2562.2,2562.1,0.04564974]
[1748088196983,26.32639594,2562.2,2562.1,0.83584974]
[1748088197184,38.03339594,2562.2,2562.1,0.83584974]
[1748088197478,3.90289594,2562.2,2562.1,0.83584974]
[1748088197794,15.60989594,2562.2,2562.1,0.83584974]
[1748088198340,15.60889594,2562.2,2562.1,0.83584974]
[1748088198689,3.90289594,2562.2,2562.1,0.83584974]
[1748088199155,1.96084715,2562.7,2562.3,0.7902]
[1748088199156,3.90259132,2562.4,2562.3,0.7902]
[1748088200733,3.90289594,2562.2,2562.1,0.04564974]
[1748088201980,4.5244993,2562.2,2562.1,0.04564974]
[1748088207185,3.90289594,2562.2,2562.1,0.04564974]
[1748088207386,5.15634093,2562.2,2562.1,0.04564974]
[1748088215530,12.97284093,2562.2,2562.1,0.04564974]
[1748088216435,24.67884093,2562.2,2562.1,0.04564974]
[1748088217122,39.28684093,2562.2,2562.1,0.04564974]
[1748088219032,26.32739594,2562.2,2562.1,0.80994974]
[1748088219327,38.03339594,2562.2,2562.1,0.80994974]
[1748088221235,11.71939594,2562.2,2562.1,0.80994974]
[1748088221404,15.60889594,2562.2,2562.1,0.80994974]
[1748088222807,16.229351,2562.2,2562.1,0.80994974]
[1748088223240,4.523351,2562.2,2562.1,0.80994974]
[1748088223531,16.229351,2562.2,2562.1,0.80994974]
[1748088223711,15.60889594,2562.2,2562.1,0.80994974]
[1748088224233,3.90289594,2562.2,2562.1,0.80994974]
[1748088224396,15.60889594,2562.2,2562.1,0.80994974]
[1748088224592,3.90289594,2562.2,2562.1,2.14934035]
[1748088224792,3.90289594,2562.2,2562.1,10.36427439]
[1748088225035,3.90289594,2562.2,2562.1,9.02488378]
[1748088235227,3.90289594,2562.2,2562.1,9.57488378]
[1748088235758,3.90289594,2562.2,2562.1,9.02488378]
[1748088239571,3.90289594,2562.2,2562.1,9.57488378]
[1748088240467,3.90260186,2562.4,2562.3,1.3755]
[1748088240671,3.90260186,2562.4,2562.3,3.67849899]
[1748088240830,3.90260186,2562.4,2562.3,11.67849899]
[1748088241225,3.90234394,2562.6,2562.3,11.67849899]
[1748088241226,3.90234394,2562.6,2562.5,1.3755]
[1748088241425,3.90234394,2562.6,2562.5,25.31489061]
[1748088243068,3.90234394,2562.6,2562.5,8.8255]
[1748088243225,3.90234394,2562.6,2562.5,9.29221917]
[1748088244657,3.90234394,2562.6,2562.5,8.8255]
[1748088245363,3.90274362,2562.3,2562.2,1.33939061]
[1748088245604,3.90289594,2562.2,2562.1,0.80424974]
[1748088245968,3.90289594,2562.2,2562.1,0.04564974]
[1748088246803,6.2438212,2562.2,2562.1,0.04564974]
[1748088248104,7.0101212,2562.2,2562.1,0.04564974]
[1748088248473,33.3101212,2562.2,2562.1,0.04564974]
[1748088250783,43.08646687,2562.2,2562.1,0.04564974]
[1748088251498,43.63646687,2562.2,2562.1,0.04564974]
[1748088251717,43.01601181,2562.2,2562.1,0.04564974]
[1748088252688,14.8266212,2562.2,2562.1,0.04564974]
[1748088252891,41.1306212,2562.2,2562.1,0.04564974]
[1748088253115,42.47001181,2562.2,2562.1,0.04564974]
[1748088253981,41.1306212,2562.2,2562.1,0.04564974]
[1748088254314,41.1316212,2562.2,2562.1,0.04564974]
[1748088255218,41.75114875,2562.2,2562.1,0.04564974]
[1748088255604,40.98484875,2562.2,2562.1,0.04564974]
[1748088255811,38.64392349,2562.2,2562.1,0.04564974]
[1748088256399,38.02539594,2562.2,2562.1,0.04564974]
[1748088256595,30.20889594,2562.2,2562.1,0.04564974]
[1748088256924,31.03019594,2562.2,2562.1,0.04564974]
[1748088260326,32.36958655,2562.2,2562.1,0.04564974]
[1748088260732,36.31957964,2562.2,2562.1,0.04564974]
[1748088261236,40.42857964,2562.2,2562.1,0.04564974]
[1748088261915,42.77157964,2562.2,2562.1,0.04564974]
[1748088262634,50.58807964,2562.2,2562.1,0.04564974]
[1748088264729,42.79768903,2562.2,2562.1,0.04564974]
[1748088264935,42.79968903,2562.2,2562.1,0.04564974]
[1748088265433,31.09468903,2562.2,2562.1,0.04564974]
[1748088265636,42.79968903,2562.2,2562.1,0.04564974]
[1748088266308,15.66938903,2562.2,2562.1,0.04564974]
[1748088266525,41.97838903,2562.2,2562.1,0.04564974]
[1748088267307,26.32339594,2562.2,2562.1,0.04564974]
[1748088267494,11.71939594,2562.2,2562.1,0.04564974]
[1748088267700,38.02939594,2562.2,2562.1,0.04564974]
[1748088268300,3.90289594,2562.2,2562.1,1.38504035]
[1748088268530,3.90289594,2562.2,2562.1,0.04564974]
[1748088268730,3.90289594,2562.2,2562.1,0.25972377]
[1748088269813,3.90289594,2562.2,2562.1,1.59911438]
[1748088270041,3.90289594,2562.2,2562.1,2.35481438]
[1748088271442,3.90289594,2562.2,2562.1,10.90481438]
[1748088271746,3.90278335,2562.3,2562.2,1.3057]
[1748088271947,3.90278335,2562.3,2562.2,2.39618144]
[1748088272105,3.90254005,2562.5,2562.2,2.39618144]
[1748088272308,3.90228674,2562.6,2562.5,0.7557]
[1748088272507,3.90228674,2562.6,2562.5,10.85459967]
[1748088273970,3.90213446,2562.7,2562.6,9.3057]
[1748088273971,3.90221368,2562.7,2562.6,9.3057]
[1748088274253,3.90221368,2562.7,2562.6,1.3057]
[1748088281070,3.90259132,2562.4,2562.2,1.09048144]
[1748088281268,3.90259132,2562.4,2562.1,1.01812377]
[1748088281269,3.90289594,2562.2,2562.1,1.01812377]
[1748088281818,3.90274362,2562.3,2562.1,1.01812377]
[1748088281819,3.90262203,2562.4,2562.3,0.7584]
[1748088282023,3.90262203,2562.4,2562.3,2.09779061]
[1748088282322,3.90262203,2562.4,2562.3,10.38854205]
[1748088283096,3.90262203,2562.4,2562.3,2.38854205]
[1748088284866,3.90262203,2562.4,2562.3,1.04915144]
[1748088286084,3.90262203,2562.4,2562.3,2.38854205]
[1748088292557,15.60262203,2562.4,2562.3,2.38854205]
[1748088292758,3.90262203,2562.4,2562.3,2.38854205]
[1748088293301,3.90251258,2562.5,2562.3,10.93854205]
[1748088293459,3.90251258,2562.5,2562.4,9.89385421]
[1748088293659,3.90251258,2562.5,2562.4,10.71385421]
[1748088294505,3.90235229,2562.6,2562.5,0.55]
[1748088294707,3.90235229,2562.6,2562.5,10.67289061]
[1748088295007,3.90235229,2562.6,2562.5,25.31689061]
[1748088295191,3.90235229,2562.6,2562.5,28.03796509]
[1748088296494,0.8158,2563.4,2562.7,0.55]
[1748088296696,20.75533177,2563.9,2563.0,2.12289061]
[1748088296697,3.90152549,2563.1,2563.0,2.12289061]
[1748088296864,15.60152549,2563.1,2563.0,2.12289061]
[1748088298108,3.90152549,2563.1,2563.0,10.67289061]
[1748088298311,15.60152549,2563.1,2563.0,12.59517967]
[1748088299185,15.60152549,2563.1,2563.0,9.92228906]
[1748088299506,15.96542342,2563.1,2563.0,8.0]
[1748088301509,3.90243902,2562.5,2562.4,0.7835]
[1748088302064,3.90243902,2562.5,2562.4,9.3335]
[1748088303680,15.60101668,2562.8,2562.6,0.55]
[1748088304016,3.90213446,2562.7,2562.6,0.55]
[1748088304323,3.90213446,2562.7,2562.6,23.165]
[1748088305119,3.90213446,2562.7,2562.6,24.50439061]
[1748088305322,3.90213446,2562.7,2562.6,27.03317967]
[1748088305488,3.90213446,2562.7,2562.6,8.0]
[1748088306911,3.90213446,2562.7,2562.6,9.33939061]
[1748088308085,3.90213446,2562.7,2562.6,8.0]
[1748088308416,3.90213446,2562.7,2562.6,9.88939061]
[1748088309137,3.90188217,2562.9,2562.8,0.55]
[1748088309326,3.90188217,2562.9,2562.8,12.51682967]
[1748088312188,3.90152549,2563.1,2563.0,0.55]
[1748088312375,3.90152549,2563.1,2563.0,24.50339061]
[1748088313396,3.90152549,2563.1,2563.0,23.164]
[1748088313905,3.90167772,2563.0,2562.9,15.164]
[1748088314072,15.59967772,2563.0,2562.5,3.1749]
[1748088314279,3.90228674,2562.6,2562.5,2.37]
[1748088314506,3.90259132,2562.4,2562.3,14.613]
[1748088314720,3.90259132,2562.4,2562.3,15.163]
[1748088314891,3.90259132,2562.4,2562.3,22.613]
[1748088315098,3.90259132,2562.4,2562.3,17.11470144]
[1748088315625,3.90274362,2562.3,2562.2,14.613]
[1748088315923,15.60066502,2562.4,2562.3,0.55]
[1748088316125,15.60066502,2562.4,2562.3,8.55]
[1748088316479,3.90266502,2562.4,2562.3,0.55]
[1748088316723,15.60066502,2562.4,2562.3,8.55]
[1748088316892,15.60066502,2562.4,2562.3,11.02621144]
[1748088317594,15.60066502,2562.4,2562.3,0.55]
[1748088318207,3.90274362,2562.3,2562.2,0.55]
[1748088318917,3.90274362,2562.3,2562.2,8.55]
[1748088319340,3.90274362,2562.3,2562.2,0.55]
[1748088319636,3.89686066,2562.3,2562.2,0.55]
[1748088319788,3.89686066,2562.3,2562.2,3.04562026]
[1748088319986,3.89686066,2562.3,2562.2,4.38501087]
[1748088320185,3.89686066,2562.3,2562.2,1.88939061]
[1748088321033,15.59586066,2562.3,2562.2,2.64579061]
[1748088321655,3.90234276,2562.6,2562.2,2.64579061]
[1748088321893,3.9026729,2562.4,2562.2,1.3064]
[1748088322084,15.6015536,2562.5,2562.4,1.88939061]
[1748088322288,15.6015536,2562.5,2562.4,12.41536967]
[1748088322492,15.6015536,2562.5,2562.4,11.07597906]
[1748088323154,15.6015536,2562.5,2562.4,12.41536967]
[1748088324079,16.4216536,2562.5,2562.4,11.07597906]
[1748088324244,16.4216536,2562.5,2562.4,8.0]
[1748088326545,16.78548435,2562.5,2562.4,8.0]
[1748088328644,3.90289594,2562.2,2562.1,0.04564974]
[1748088328847,15.60289594,2562.2,2562.1,0.04564974]
[1748088329486,16.42299594,2562.2,2562.1,0.04564974]
[1748088330096,16.78663145,2562.2,2562.1,0.04564974]
[1748088330462,19.24583041,2562.2,2562.1,0.04564974]
[1748088330813,33.86183041,2562.2,2562.1,0.04564974]
[1748088332411,33.89683041,2562.2,2562.1,0.04564974]
[1748088335396,16.78863145,2562.2,2562.1,0.04564974]
[1748088335767,5.08663145,2562.2,2562.1,0.04564974]
[1748088336082,16.78963145,2562.2,2562.1,0.04564974]
[1748088336279,4.26653145,2562.2,2562.1,0.04564974]
[1748088336488,15.96953145,2562.2,2562.1,0.04564974]
[1748088336685,15.60589594,2562.2,2562.1,0.04564974]
[1748088337088,15.60589594,2562.2,2562.1,1.38504035]
[1748088337816,15.60589594,2562.2,2562.1,0.04564974]
[1748088338210,3.90289594,2562.2,2562.1,0.04564974]
[1748088338388,15.60589594,2562.2,2562.1,0.04564974]
[1748088338591,3.90289594,2562.2,2562.1,0.04564974]
[1748088338975,15.60589594,2562.2,2562.1,0.04564974]
[1748088339212,3.90289594,2562.2,2562.1,0.04564974]
[1748088339417,15.60589594,2562.2,2562.1,0.04564974]
[1748088341610,3.90289594,2562.2,2562.1,2.19534035]
[1748088341938,3.90274362,2562.3,2562.2,8.55]
[1748088342127,3.90274362,2562.3,2562.2,0.55]
[1748088342999,3.90243902,2562.5,2562.4,0.55]
[1748088343214,3.90243902,2562.5,2562.4,9.88939061]
[1748088343441,3.90243902,2562.5,2562.4,2.69969061]
[1748088343637,3.90243902,2562.5,2562.4,3.89556906]
[1748088343808,3.90243902,2562.5,2562.4,6.67992582]
[1748088344442,11.703,2563.1,2562.5,0.8103]
[1748088344610,3.90182995,2562.9,2562.8,11.33435676]
[1748088345211,3.90182995,2562.9,2562.8,8.0]
[1748088347942,15.60282995,2562.9,2562.8,8.0]
[1748088348347,3.90182995,2562.9,2562.8,11.33435676]
[1748088350462,3.90182995,2562.9,2562.8,12.13615676]
[1748088350636,3.90182995,2562.9,2562.8,13.34977244]
[1748088353665,3.90182995,2562.9,2562.8,8.0]
[1748088354843,4.50182995,2562.9,2562.8,8.0]
[1748088355892,3.90182995,2562.9,2562.8,8.0]
[1748088358899,3.90182995,2562.9,2562.8,8.55]
[1748088359065,15.60082995,2562.9,2562.8,11.33435676]
[1748088359272,3.90182995,2562.9,2562.8,14.70949244]
[1748088362201,3.90182995,2562.9,2562.8,11.37513568]
[1748088362407,3.90182995,2562.9,2562.8,8.0]
[1748088363099,4.50182995,2562.9,2562.8,8.0]
[1748088365427,16.20082995,2562.9,2562.8,8.0]
[1748088365794,4.50182995,2562.9,2562.8,8.0]
[1748088366131,16.20082995,2562.9,2562.8,8.0]
[1748088369116,4.50182995,2562.9,2562.8,8.0]
[1748088369420,4.50182995,2562.9,2562.8,8.93386459]
[1748088369717,16.20082995,2562.9,2562.8,8.93386459]
[1748088369875,3.90182995,2562.9,2562.8,8.93386459]
[1748088370083,15.60082995,2562.9,2562.8,8.93386459]
[1748088370300,3.90182995,2562.9,2562.8,9.48386459]
[1748088375320,15.59982995,2562.9,2562.8,9.48386459]
[1748088376691,3.90182995,2562.9,2562.8,9.48386459]
[1748088378791,3.90182995,2562.9,2562.8,8.0]
[1748088381939,15.59982995,2562.9,2562.8,8.0]
[1748088382235,3.90182995,2562.9,2562.8,7.99411703]
[1748088382438,15.59982995,2562.9,2562.8,7.99411703]
[1748088382932,15.59982995,2562.9,2562.8,8.54411703]
[1748088383135,15.59982995,2562.9,2562.8,11.00369333]
[1748088383346,15.59982995,2562.9,2562.8,8.54411703]
[1748088384140,15.59982995,2562.9,2562.8,9.34821703]
[1748088386622,3.901234,2563.3,2562.8,9.34821703]
[1748088386623,3.90180645,2563.0,2562.9,8.0]
[1748088386826,3.90133665,2563.3,2563.0,1.88864593]
[1748088387146,15.59944313,2563.2,2563.0,1.88864593]
[1748088387345,3.90152549,2563.1,2563.0,1.88864593]
[1748088387646,3.90152549,2563.1,2563.0,11.21191915]
[1748088388153,15.5994517,2563.2,2563.1,8.55]
[1748088388354,3.90127529,2563.3,2563.2,0.55]
[1748088388652,3.90078807,2563.6,2563.4,0.55]
[1748088388814,3.90091671,2563.5,2563.4,0.55]
[1748088389015,3.90091671,2563.5,2563.4,11.08521459]
[1748088390552,15.59791671,2563.5,2563.4,11.08521459]
[1748088390958,15.59791671,2563.5,2563.4,12.42386052]
[1748088392211,3.90091671,2563.5,2563.4,12.42386052]
[1748088392416,3.90081768,2563.6,2563.5,9.3782]
[1748088392707,3.90081768,2563.6,2563.5,3.55840605]
[1748088393149,3.90067376,2563.7,2563.5,3.55840605]
[1748088393349,3.90049303,2563.8,2563.7,0.55]
[1748088393550,3.90049303,2563.8,2563.7,24.5449052]
[1748088393748,3.90037454,2563.9,2563.8,8.55]
[1748088393954,3.90020803,2564.0,2563.9,0.55]
[1748088393955,3.90022371,2564.0,2563.9,0.55]
[1748088394808,3.90022371,2564.0,2563.8,8.0]
[1748088395011,3.90076454,2563.6,2563.5,24.73554593]
[1748088395215,3.90076454,2563.6,2563.5,26.98420052]
[1748088395930,3.90063468,2563.7,2563.5,26.98420052]
[1748088395931,3.9006467,2563.7,2563.6,8.0]
[1748088396267,3.9006467,2563.7,2563.6,8.7749]
[1748088397626,3.90076454,2563.6,2563.5,3.81220052]
[1748088397826,3.90106889,2563.4,2563.3,14.62]
[1748088398062,3.90106889,2563.4,2563.3,15.95864593]
[1748088398264,3.87992599,2563.4,2563.3,24.50864593]
[1748088398557,3.87992599,2563.4,2563.3,16.50864593]
[1748088398765,3.87992599,2563.4,2563.3,28.04034223]
[1748088399956,15.57492599,2563.4,2563.3,28.04034223]
[1748088400155,3.87992599,2563.4,2563.3,28.85154223]
[1748088400917,4.47992599,2563.4,2563.3,28.85154223]
[1748088402460,4.50106889,2563.4,2563.3,28.85154223]
[1748088403262,4.50106889,2563.4,2563.3,12.0816963]
[1748088403419,4.50106889,2563.4,2563.3,9.88864593]
[1748088404117,0.6,2563.4,2563.3,9.88864593]
[1748088404318,0.6,2563.4,2563.3,10.69984593]
[1748088405371,4.50106889,2563.4,2563.3,10.69984593]
[1748088405841,0.6,2563.4,2563.3,10.69984593]
[1748088406157,0.6,2563.4,2563.3,14.64983902]
[1748088406557,11.695,2564.3,2563.6,0.55]
[1748088406747,3.90030669,2564.0,2563.9,0.8112]
[1748088406951,3.90030669,2564.0,2563.9,11.20932]
[1748088407124,3.90030669,2564.0,2563.9,10.94812]
[1748088407326,15.59530669,2564.0,2563.9,8.0]
[1748088408172,3.90046025,2563.8,2563.7,1.33864593]
[1748088409869,3.90046025,2563.8,2563.6,8.0]
[1748088409870,4.70701239,2563.7,2563.6,8.0]
[1748088410174,3.90091671,2563.5,2563.4,9.33864593]
[1748088412480,15.59491671,2563.5,2563.4,9.33864593]
[1748088414379,3.90091671,2563.5,2563.4,12.28441052]
[1748088414563,3.90078192,2563.6,2563.4,12.28441052]
[1748088414564,15.59588843,2563.6,2563.5,0.55]
[1748088415122,3.90088843,2563.6,2563.5,0.55]
[1748088417378,0.7626,2564.3,2563.5,0.55]
[1748088417584,0.7626,2564.3,2564.2,1.33864593]
[1748088417779,3.89969972,2564.3,2564.2,1.88864593]
[1748088418469,3.89964213,2564.4,2564.3,0.55]
[1748088418662,4.66157776,2564.8,2564.5,0.55]
[1748088418663,3.89924354,2564.6,2564.5,0.55]
[1748088418864,3.89924354,2564.6,2564.5,23.169]
[1748088419166,3.89924354,2564.6,2564.5,25.69683459]
[1748088419391,3.89924354,2564.6,2564.5,23.169]
[1748088419581,3.89924354,2564.6,2564.5,22.619]
[1748088420179,4.70544354,2564.6,2564.5,22.619]
[1748088420594,5.06950372,2564.6,2564.5,8.0]
[1748088421566,16.76250372,2564.6,2564.5,8.0]
[1748088421765,18.82866324,2564.6,2564.5,8.0]
[1748088422510,3.90030812,2563.9,2563.8,25.94830954]
[1748088423806,4.50030812,2563.9,2563.8,25.94830954]
[1748088424308,4.50030812,2563.9,2563.8,26.69990954]
[1748088424504,0.6,2563.9,2563.8,26.69990954]
[1748088424800,0.6,2563.9,2563.8,29.4927446]
[1748088425004,3.89989281,2564.2,2563.9,8.55]
[1748088425182,3.900156,2564.0,2563.9,8.55]
[1748088425509,3.900156,2564.0,2563.9,11.33030954]
[1748088425710,4.70542816,2564.7,2563.9,11.33030954]
[1748088425909,3.89998184,2564.2,2564.1,8.55]
[1748088426787,3.89998184,2564.2,2564.1,9.3047]
[1748088427102,3.89998184,2564.2,2564.1,12.08500954]
[1748088427808,3.89998184,2564.2,2564.1,11.33030954]
[1748088428011,3.89998184,2564.2,2564.1,22.811]
[1748088428308,3.89998184,2564.2,2564.1,25.38702745]
[1748088428665,3.89998184,2564.2,2564.1,22.811]
[1748088428867,3.90030812,2563.9,2563.8,11.33030954]
[1748088429099,3.90030812,2563.9,2563.8,26.14030954]
[1748088437342,3.90030812,2563.9,2563.8,8.0]
[1748088438140,15.59330812,2563.9,2563.8,8.0]
[1748088438640,3.90030812,2563.9,2563.8,10.831]
[1748088438812,3.90021664,2564.0,2563.9,8.0]
[1748088439795,3.90021664,2564.0,2563.9,9.33689258]
[1748088440433,3.90015259,2564.1,2563.9,9.88689258]
[1748088440630,3.90015259,2564.1,2564.0,10.68771184]
[1748088440938,3.89989367,2564.2,2564.1,8.55]
[1748088441097,3.89989367,2564.2,2564.1,1.3403]
[1748088441296,3.89989367,2564.2,2564.1,0.55]
[1748088441529,3.89989367,2564.2,2564.1,8.55]
[1748088441701,3.89989367,2564.2,2564.1,9.75280118]
[1748088443606,3.89989367,2564.2,2564.1,24.01280118]
[1748088443940,3.89989367,2564.2,2564.1,22.81]
[1748088443941,4.49989367,2564.2,2564.1,22.81]
[1748088444710,4.86448397,2564.2,2564.1,22.81]
[1748088445215,16.55648397,2564.2,2564.1,22.81]
[1748088446640,16.55648397,2564.2,2564.1,8.0]
[1748088451850,16.55648397,2564.2,2563.4,15.36]
[1748088451851,3.90091671,2563.5,2563.4,15.36]
[1748088452063,3.90091671,2563.5,2563.4,23.36]
[1748088454019,3.90091671,2563.5,2563.4,26.14092614]
[1748088457217,3.90091671,2563.5,2563.4,26.97192614]
[1748088457713,0.36452605,2563.9,2563.5,8.55]
[1748088458029,4.26483417,2563.9,2563.8,12.16192614]
[1748088458354,3.90030812,2563.9,2563.8,12.16192614]
[1748088459336,3.90030812,2563.9,2563.8,8.55]
[1748088459554,4.66510812,2563.9,2563.8,8.0]
[1748088460440,5.02963833,2563.9,2563.8,8.0]
[1748088461563,16.72363833,2563.9,2563.8,8.0]
[1748088464267,3.90061239,2563.7,2563.6,1.33759366]
[1748088464564,3.90061239,2563.7,2563.6,16.12359366]
[1748088464861,3.90061239,2563.7,2563.6,24.12359366]
[1748088465035,3.90061239,2563.7,2563.6,26.59095303]
[1748088468464,3.90061239,2563.7,2563.6,18.59095303]
[1748088468668,3.90061239,2563.7,2563.6,27.41735303]
[1748088472963,3.90061239,2563.7,2563.6,26.59095303]
[1748088474566,4.68261239,2563.7,2563.6,22.786]
[1748088474774,3.90091671,2563.5,2563.4,16.67359366]
[1748088474979,3.90091671,2563.5,2563.4,24.67359366]
[1748088475355,4.26576918,2563.5,2563.4,24.67359366]
[1748088475844,4.26576918,2563.5,2563.4,27.14095303]